Cogmind - Beta 16 @@@ ROGUE MODE // 2025.11.15 @ 23:30:55 Player: RHAHI Result: Destroyed by NC-VEQ(j) with Overtuned Pulse Rifle Performance ------------- Evolutions (3) 1500 Regions Visited (10) 2000 Robots Destroyed (106) 530 Value Destroyed (4044) 4044 Prototype IDs (14) 280 Alien Tech Used (0) 0 Bonus (1763) 1763 TOTAL SCORE: 10117 Bonus ------- High Alert Combat Kills 337 Follower Combat Kills 746 Entered Garrisons 200 Used RIF Installer 500 Friendly Fire -20 Cogmind --------- Core Integrity 0/700 Matter 265/300 Energy 83/100 System Corruption 2% Temperature Warm (108) Movement Flying (40) Location -7/Scraptown Parts ------- > --- POWER (1) -------- (None) > --- PROPULSION (3) --- Combat Airjet Combat Airjet Nuclear Pulse Thruster > --- UTILITY (6) ------ Hacking Suite Authchip [Propulsion] > --- WEAPON (3) ------- (None) > --- INVENTORY (5) ---- Hardened Heavy Armor Plating Authchip [Propulsion] Flak Gun Advanced Assault Cannon Peak State ------------ > --- POWER ------------ Reinforced Deuterium Engine > --- PROPULSION ------- Light Treads Light Treads Improved Treads > --- UTILITY ---------- Improved Heat Sink Huge Storage Unit Advanced Visual Processing Unit Hardened Heavy Armor Plating System Shield > --- WEAPON ----------- Enhanced Autogun Gauss Rifle Makeshift Sword > --- INVENTORY -------- Heavy Ion Engine Heavy Ion Engine Light Treads Improved Treads Improved Treads Spiked Treads Armored Treads Aerolev Unit Combat Airjet Combat Airjet Medium Storage Unit Structural Scanner Improved Sensor Array Hardened Heavy Armor Plating Hacking Suite Relay Coupler [Grunt] Relay Coupler [Duelist] Relay Coupler [Sentry] Ion Cannon Ion Cannon Minigun Advanced Assault Cannon Improved Grenade Launcher Improved Datajack [Rating: 45] Favorites ----------- Power Heavy Ion Engine Engine Heavy Ion Engine Power Core Light Nuclear Core Propulsion Light Treads Treads Light Treads Leg Aluminum Leg Wheel Armored Wheel Hover Unit Combat Airjet Flight Unit VTOL Module Utility Huge Storage Unit Device Structural Scanner Storage Huge Storage Unit Processor Improved Signal Interpreter Hackware Hacking Suite Protection Light Armor Plating Weapon Makeshift Sword Energy Gun Improved EM Shotgun Energy Cannon Ion Cannon Ballistic Gun Assault Rifle Ballistic Cannon Assault Cannon Launcher Improved Grenade Launcher Special Weapon Remote Datajack Slashing Weapon Makeshift Sword Special Melee Weapon Improved Datajack Build | -11 -10 -10 -10 -9 -8 -7 -7 -7 -7 -7 ------- Run | Yrd Mat Min Exi Min Mat Fac Gar Sto Rec Scr Slots Evolved 6 | . . . . . 4 2 . . . . Power . | . . . . . . . . . . . Propulsion 1 | . . . . . 1 . . . . . Utility 4 | . . . . . 2 2 . . . . Weapon 1 | . . . . . 1 . . . . . Parts Attached 120 | 7 14 4 . 11 40 1 10 14 8 11 Power 13 | 1 2 1 . 3 4 . 1 . . 1 Engine 11 | 1 1 1 . 3 3 . 1 . . 1 Core 2 | . 1 . . . 1 . . . . . Reactor . | . . . . . . . . . . . Propulsion 33 | 2 4 3 . 3 8 . 2 3 4 4 Treads 22 | 2 1 3 . 1 8 . 2 3 1 1 Leg 3 | . 3 . . . . . . . . . Wheel 3 | . . . . . . . . . 3 . Hover 2 | . . . . . . . . . . 2 Flight 3 | . . . . 2 . . . . . 1 Utility 38 | 2 4 . . 2 12 1 3 7 2 5 Device 11 | 2 1 . . . 4 . 1 2 1 . Storage 6 | . 3 . . . 1 . . . . 2 Processor 4 | . . . . . 3 . 1 . . . Hackware 6 | . . . . . 1 . . 3 1 1 Protection 11 | . . . . 2 3 1 1 2 . 2 Artifact . | . . . . . . . . . . . Weapon 36 | 2 4 . . 3 16 . 4 4 2 1 Energy Gun 8 | 1 3 . . . 1 . . 1 2 . Energy Cannon 9 | . . . . . 6 . 1 2 . . Ballistic Gun 8 | 1 . . . 2 5 . . . . . Ballistic Cannon 2 | . . . . . 1 . 1 . . . Launcher 4 | . . . . . 2 . 2 . . . Special Weapon 3 | . 1 . . . . . . 1 . 1 Impact Weapon . | . . . . . . . . . . . Slashing Weapon 1 | . . . . 1 . . . . . . Piercing Weapon . | . . . . . . . . . . . Special Melee Weapon 1 | . . . . . 1 . . . . . Unidentified Prototypes 4 | . 1 . . . 3 . . . . . Corrupted Parts 1 | . . . . . . . . . . 1 System Corruption 1 | . . . . . . . . . . 1 Parts Lost 16 | . . . . . 2 . 4 1 1 8 Power 1 | . . . . . . . . . . 1 Propulsion 3 | . . . . . 1 . 2 . . . Utility 8 | . . . . . 1 . 1 1 1 4 Weapon 4 | . . . . . . . 1 . . 3 Highest Loss Streak 8 | . . . . . 1 . 2 1 1 8 To Critical Strikes . | . . . . . . . . . . . Average Backups 18 | 4 14 20 20 6 24 22 23 23 22 13 Power 1 | 1 1 1 1 . 1 1 1 2 2 1 Propulsion 6 | 1 7 10 10 2 9 8 8 7 7 3 Utility 5 | . 3 3 4 1 7 6 6 7 7 5 Weapon 4 | . 3 5 5 1 4 5 5 6 5 3 Tool/Special . | . . . . . . . . . . . Unused Backups 42 | . 1 3 . 5 11 . 4 3 4 11 Power 4 | . . . . . 2 . 1 . . 1 Propulsion 10 | . . 1 . 4 1 . . . 1 3 Utility 17 | . . 1 . 1 3 . 3 2 2 5 Weapon 10 | . . 1 . . 5 . . 1 1 2 Tool/Special 1 | . 1 . . . . . . . . . Average Slot Usage (%) 95 | . 100 100 100 84 99 99 94 97 99 88 Engine 7 | . 9 14 14 1 8 7 7 7 7 5 Treads 19 | . 23 28 28 4 26 23 22 23 6 11 Wheel 1 | . . . . . . . . . 16 . Hover 1 | . . . . . . . . . . 8 Flight 1 | . . . . 23 . . . . . . Device 12 | . 14 14 14 5 7 15 7 10 16 18 Storage 8 | . 13 14 14 2 9 7 7 7 7 6 Processor 2 | . . . . . 6 7 9 . . . Hackware 6 | . . . . . 7 7 7 18 13 10 Protection 5 | . . . . 19 6 6 7 4 7 6 Energy Gun 4 | . 14 14 14 . . . . . 6 . Energy Cannon 2 | . . . . . 9 7 1 4 6 . Ballistic Gun 8 | . 8 14 14 17 9 7 14 7 . . Special Weapon 3 | . 4 . . . . . . 2 6 10 Slashing Weapon 4 | . . . . 8 6 7 3 3 1 6 Peak Build Rating 45 | 9 13 14 13 13 34 38 45 45 45 45 Average Rating 27 | 5 10 12 13 10 29 36 41 41 43 38 On Entrance 23 | . 9 12 13 13 13 34 38 45 43 42 Avg Prop Armor Cover (%) 17 | 28 . . . . . . . . 9 15 Naked Turns 1 | . . . . 1 . . . . . . Heaviest Build 129 | 9 51 53 53 53 107 104 126 129 118 115 Greatest Support 63 | 40 40 46 40 43 63 60 63 63 63 60 Greatest Overweight (x) 9 | 2 2 1 1 1 2 1 1 2 9 1 Average Overweight (x) . | . . 1 1 . . 1 1 1 2 . Largest Inventory Capacity 25 | 5 25 20 20 20 25 25 25 25 25 25 Average Capacity 19 | 5 16 20 20 7 24 25 25 25 25 16 Most Carried 25 | 5 20 20 20 20 25 25 25 25 25 25 Average Carried 18 | 4 14 19 20 6 24 24 24 24 24 14 Final Capacity 25 | 5 20 20 20 20 25 25 25 25 25 5 Final Carried 25 | 5 20 20 20 20 25 25 25 25 25 5 Class Distribution -------------------- 40% | Scavenger-Mutant 34% | Mutant 11% | Scavenger-Tank 6% | Sprinter 3% | Tank Dominant Class ---------------- Mutant | -10/Materials Mutant | -10/Mines Mutant | -10/Exiles Sprinter | -9/Mines Scavenger-Mutant | -8/Materials Scavenger-Assassin | -7/Factory Mutant | -7/Garrison Scavenger-Mutant | -7/Storage Scavenger-Tank | -7/Recycling Scavenger-Mutant | -7/Scraptown Resources | -11 -10 -10 -10 -9 -8 -7 -7 -7 -7 -7 ----------- Run | Yrd Mat Min Exi Min Mat Fac Gar Sto Rec Scr Matter Collected 3769 | 324 463 75 . 206 1222 . 714 317 299 149 Remotely . | . . . . . . . . . . . Salvage Created 3874 | 206 426 54 . 205 1620 . 796 498 69 . Parts 236 | 19 22 5 . 4 112 . 42 28 4 . Haulers Intercepted 5 | . 1 . . . 4 . . . . . Recyclers Shooed 10 | . 1 . . 4 5 . . . . . Parts Field Recycled . | . . . . . . . . . . . Retrieved Matter . | . . . . . . . . . . . Parts Self-Destructed . | . . . . . . . . . . . Prevented . | . . . . . . . . . . . Parts Restored . | . . . . . . . . . . . Kills | -11 -10 -10 -10 -9 -8 -7 -7 -7 -7 -7 ------- Run | Yrd Mat Min Exi Min Mat Fac Gar Sto Rec Scr Combat Hostiles Destroyed 84 | . 8 3 . 5 32 . 26 9 1 . Melee 4 | . . . . 1 . . 1 2 . . Guns 34 | . 8 3 . 4 8 . 8 2 1 . Cannons 20 | . . . . . 13 . 2 5 . . AOE 25 | . . . . . 10 . 15 . . . Classes Destroyed 17 | 2 5 . . 1 6 . 1 2 . . Worker 1 | . . . . . 1 . . . . . Builder 1 | . . . . . 1 . . . . . Tunneler 6 | 6 . . . . . . . . . . Hauler 5 | . 1 . . . 4 . . . . . Recycler 5 | 1 1 . . 2 1 . . . . . Operator 3 | . 1 . . . 1 . 1 . . . Watcher 5 | . 1 . . . 4 . . . . . Swarmer 25 | . 3 3 . 1 11 . 7 . . . Cutter 3 | . . . . . . . 3 . . . Grunt 31 | . 5 . . . 10 . 14 2 . . Brawler 3 | . . . . . 1 . 2 . . . Duelist 1 | . . . . . . . . 1 . . Sentry 13 | . . . . . 7 . . 5 1 . Specialist 2 | . . . . . 2 . . . . . Hunter 1 | . . . . . 1 . . . . . Programmer 1 | . . . . . . . . 1 . . Assembled 4 | . . . . 4 . . . . . . Best Kill Streak 20 | 6 3 3 . 2 5 . 20 2 1 . Combat Bots Only 20 | . 3 3 . 2 4 . 20 2 1 . Max Kills in Single Turn 5 | 1 1 1 . 1 5 . 3 1 1 . Gunslinging . | . . . . . . . . . . . Exploded 4 | . . . . . 4 . 3 . . . Melee 1 | . . . . 1 . . 1 1 . . Uniques/NPCs Destroyed . | . . . . . . . . . . . Combat | -11 -10 -10 -10 -9 -8 -7 -7 -7 -7 -7 -------- Run | Yrd Mat Min Exi Min Mat Fac Gar Sto Rec Scr Hostile Shots Fired 573 | . 39 7 . 16 87 . 119 159 27 119 Missed 174 | . 7 2 . 6 22 . 42 48 7 40 Hits 399 | . 32 5 . 10 65 . 77 111 20 79 Melee 6 | . . . . . . . 3 3 . . Projectile 393 | . 32 5 . 10 65 . 74 108 20 79 AOE 2 | . . . . . . . 2 . . . Critical Strikes 17 | . . . . . 4 . 5 . . 8 Actively Blocked 1 | . . . . . . . . . . 1 Damage Taken 5921 | . 351 74 . 121 1196 . 1354 1251 147 1427 Core 985 | . 57 . . 26 191 . 107 285 27 292 Absorbed by Shields . | . . . . . . . . . . . Redirected to Shielding 84 | . . . . 1 . . . . . 83 Regen/Repaired (Parts) 65 | . . . . . 65 . . . . . Core Remaining (%) 77 | 100 . . . 66 65 . . . . . Volleys Fired 315 | 20 81 5 . 28 85 3 37 31 25 . Largest 3 | 2 2 2 . 2 3 2 3 3 3 . Hottest 240 | 70 100 65 . 40 161 85 148 148 240 . Shots Fired 635 | 40 126 9 . 56 216 6 96 58 28 . Gun 377 | 40 96 9 . 56 90 3 67 13 3 . Cannon 186 | . . . . . 123 3 17 41 2 . Launcher 15 | . . . . . 3 . 12 . . . Special 57 | . 30 . . . . . . 4 23 . Kinetic 312 | 20 49 5 . 56 99 3 67 13 . . Thermal 267 | 20 71 . . . 114 3 13 41 5 . Explosive 15 | . . . . . 3 . 12 . . . Electromagnetic 14 | . 6 4 . . . . 4 . . . Robot Hit Streak 15 | 7 14 6 . 6 13 1 12 8 15 . Robot Miss Streak 8 | 3 4 1 . 4 5 8 6 2 1 . Penetration Max 1 | . . . . . . . 1 . . . Secondary Targets 3 | . 1 . . . . . 2 . . . Max Gunslinging Chain 1 | . 1 . . . . . 1 . . . Shots Hit Robots 399 | 24 66 6 . 30 130 1 64 53 25 . Core Hits 175 | 8 20 3 . 15 59 . 53 13 4 . Critical Kills 1 | . . . . . 1 . . . . . Critical Parts Destroyed 2 | . . . . 1 . . . 1 . . Critical Strikes 5 | . 2 . . 1 1 . . 1 . . Burn 2 | . 2 . . . . . . . . . Meltdown 1 | . . . . . 1 . . . . . Destroy 2 | . . . . 1 . . . 1 . . Melee Attacks 105 | . . . . 4 44 2 35 18 1 1 Impact . | . . . . . . . . . . . Slashing 83 | . . . . 4 42 2 26 7 1 1 Piercing . | . . . . . . . . . . . Sneak Attacks 23 | . . . . 1 5 . 9 7 1 . Combat Hostiles 2 | . . . . 1 . . . 1 . . Follow-up Attacks . | . . . . . . . . . . . Damage Inflicted 8826 | 316 848 73 . 311 3441 14 2680 950 193 . Guns 3263 | 316 848 73 . 233 736 14 781 171 91 . Cannons 2671 | . . . . . 1740 . 261 643 27 . Explosions 2003 | . . . . . 657 . 1346 . . . Melee 887 | . . . . 78 308 . 290 136 75 . Ramming 2 | . . . . . . . 2 . . . Kinetic 2572 | 152 361 26 . 233 834 14 781 171 . . Thermal 3160 | 164 410 . . . 1642 . 183 643 118 . Explosive 2003 | . . . . . 657 . 1346 . . . Electromagnetic 202 | . 77 47 . . . . 78 . . . Impact . | . . . . . . . . . . . Slashing 887 | . . . . 78 308 . 290 136 75 . Piercing . | . . . . . . . . . . . Highest Corruption 3 | . . . . . 1 . . 2 3 3 Average Corruption 1 | . . . . . 1 . . 1 2 1 Corruption Purged . | . . . . . . . . . . . Corruption Blocked . | . . . . . . . . . . . Effects 47 | . . . . . 19 . . 4 24 . Message Errors 11 | . . . . . 4 . . 1 6 . Matter Fused 15 | . . . . . 8 . . . 7 . Heat Flow Errors 5 | . . . . . 2 . . 2 1 . Energy Discharges 7 | . . . . . 3 . . . 4 . Parts Fused 1 | . . . . . . . . . 1 . Data Loss (minor) 7 | . . . . . 2 . . 1 4 . Misfires 1 | . . . . . . . . . 1 . Overload Shots . | . . . . . . . . . . . Overflow Damage 188 | . . . . 38 105 . . . 45 . Projectiles . | . . . . . . . . . . . Explosions 45 | . . . . . 45 . . . . . Melee 143 | . . . . 38 60 . . . 45 . Knockbacks 2 | . . . . . 2 . . . . . Impact . | . . . . . . . . . . . Kinetic 2 | . . . . . 2 . . . . . Secondary . | . . . . . . . . . . . Self-Inflicted Damage 108 | . . 34 . . . . 74 . . . Shots 3 | . . 1 . . . . 2 . . . Rammed 2 | . . . . . 1 . 1 . . . Targets Rammed 2 | . . . . . 1 . 1 . . . Kicked . | . . . . . . . . . . . Crushed . | . . . . . . . . . . . Highest Temperature 425 | 27 141 36 . 6 425 52 164 229 171 96 Average Temperature 64 | 13 30 16 . 2 102 26 57 71 65 32 Received Heat Transfer 2084 | . 135 . . 40 396 . 594 327 48 544 Effects 2 | . . . . . 2 . . . . . Shutdowns 1 | . . . . . 1 . . . . . Short Circuit 1 | . . . . . 1 . . . . . Siege Activations . | . . . . . . . . . . . Martial Activations . | . . . . . . . . . . . Shielding Activations . | . . . . . . . . . . . Robots Disrupted . | . . . . . . . . . . . Combat Hostiles . | . . . . . . . . . . . Robots Corrupted . | . . . . . . . . . . . Combat Hostiles . | . . . . . . . . . . . Parts Fried 1 | . . 1 . . . . . . . . Impact Corruptions . | . . . . . . . . . . . Robots Melted 1 | . . . . . 1 . . . . . Combat Hostiles 1 | . . . . . 1 . . . . . Parts Melted 11 | 3 2 . . . 3 . . 2 1 . Heat Transferred 6059 | 481 1332 . . . 2701 . 296 999 250 . Parts Sabotaged . | . . . . . . . . . . . Parts Stolen . | . . . . . . . . . . . Parts Stripped . | . . . . . . . . . . . Power Chain Reactions 1 | . . 1 . . . . . . . . Alert | -11 -10 -10 -10 -9 -8 -7 -7 -7 -7 -7 ------- Run | Yrd Mat Min Exi Min Mat Fac Gar Sto Rec Scr Maximum Alert Level 4 | . . . . . 1 . 4 3 1 . Low Security (%) 75 | 100 100 100 . 100 74 100 12 . 86 . Level 1 8 | . . . . . 25 . 3 . 13 . Level 2 8 | . . . . . . . 45 50 . . Level 3 7 | . . . . . . . 32 49 . . Level 4 . | . . . . . . . 5 . . . Level 5 . | . . . . . . . . . . . High Security . | . . . . . . . . . . . Max Security . | . . . . . . . . . . . Peak Influence 1137 | 10 71 75 . 160 326 86 1137 963 285 . Initial 553 | . . 22 . . . 86 2 553 285 . Average 171 | 1 11 8 . 22 155 20 609 677 93 . Influence Increases 4156 | 35 328 75 . 242 1023 14 1175 1053 211 . Destroy 0b10 Robot/C 2040 | . 160 60 . 20 640 . 600 540 20 . Destroy 0b10 Robot/NC 160 | 35 20 . . 10 60 . 5 30 . . Destroy Leader 394 | . 44 10 . . 166 . 40 134 . . Allied During Kill 213 | . . . . . . . 32 181 . . Trap Triggered on 0b10 40 | . . . . 40 . . . . . . Successful Hack 143 | . 31 . . 7 38 12 . 14 41 . Select Force Hacks 210 | . 30 . . . 30 . . . 150 . Disable Machine 165 | . . . . . . . 60 105 . . Anti-Garrison Action 400 | . . . . . . . 400 . . . Destroy Structure 211 | . 28 5 . . 89 2 38 49 . . Partial Spotted 45 | . . . . 45 . . . . . . Lose Combat Pursuer 135 | . 15 . . 120 . . . . . . Influence Decreases 4156 | 35 270 109 24 242 832 201 42 1458 943 . Entered New Map 1198 | . . 36 24 . . 105 2 584 447 . Time Decay 2238 | 35 270 73 . 242 662 96 . 374 486 . Lost Part 80 | . . . . . 20 . 40 10 10 . Lost Ally 190 | . . . . . . . . 190 . . Purge Threat 450 | . . . . . 150 . . 300 . . Squads Dispatched 15 | . 2 . . 1 4 1 . 7 . . Investigation 4 | . 1 . . 1 2 . . . . . Extermination 2 | . . . . . . 1 . 1 . . Reinforcement 6 | . 1 . . . 2 . . 3 . . Assault 3 | . . . . . . . . 3 . . Garrison . | . . . . . . . . . . . Intercept . | . . . . . . . . . . . Searches Triggered . | . . . . . . . . . . . Construction Impeded . | . . . . . . . . . . . Haulers Reinforced 2 | . . . . . . . . 2 . . Active Scanning Responses . | . . . . . . . . . . . Cargo Convoy Interrupts . | . . . . . . . . . . . Stealth | -11 -10 -10 -10 -9 -8 -7 -7 -7 -7 -7 --------- Run | Yrd Mat Min Exi Min Mat Fac Gar Sto Rec Scr Distress Signals 3 | . 1 . . 1 . . . 1 . . Communications Jammed . | . . . . . . . . . . . Distress Signals . | . . . . . . . . . . . Times Spotted 176 | . 13 3 . 37 40 1 32 29 2 19 Peak Tracking Total 21 | . 3 3 . 20 4 1 7 6 1 21 Tactical Retreats 12 | . 1 . . 11 . . . . . . Traps | -11 -10 -10 -10 -9 -8 -7 -7 -7 -7 -7 ------- Run | Yrd Mat Min Exi Min Mat Fac Gar Sto Rec Scr Traps Triggered 4 | . . . . . 1 . 3 . . . Indirectly . | . . . . . . . . . . . Trap Hack Attempts 4 | . . . . . . . . 4 . . Triggered 1 | . . . . . . . . 1 . . Disarmed 1 | . . . . . . . . 1 . . Reprogrammed . | . . . . . . . . . . . Reused 5 | . . . . 5 . . . . . . Traps Extracted . | . . . . . . . . . . . Installed 5 | . . . . 5 . . . . . . Triggered 4 | . . . . 4 . . . . . . Most Traps Carried 3 | . . . . 3 . . 1 . . . Machines | -11 -10 -10 -10 -9 -8 -7 -7 -7 -7 -7 ---------- Run | Yrd Mat Min Exi Min Mat Fac Gar Sto Rec Scr Machines Disabled 16 | . . . . . . . 8 7 . 1 Max in Single Turn 1 | . . . . . . . 1 1 . 1 Garrison Relay 4 | . . . . . . . 4 . . . Machines Repaired . | . . . . . . . . . . . Machines Dismantled . | . . . . . . . . . . . Machines Sabotaged . | . . . . . . . . . . . Overloaded Fab Kills . | . . . . . . . . . . . Hacking | -11 -10 -10 -10 -9 -8 -7 -7 -7 -7 -7 --------- Run | Yrd Mat Min Exi Min Mat Fac Gar Sto Rec Scr Machines Accessed 49 | . 9 . 4 1 14 1 2 5 12 1 Terminals 30 | . 7 . . 1 9 . 2 5 6 . Fabricators . | . . . . . . . . . . . Repair Stations 2 | . 1 . . . 1 . . . . . Recycling Units 9 | . 1 . . . 2 . . . 6 . Scanalyzers 2 | . . . . . 2 . . . . . Garrison Access 1 | . . . . . . 1 . . . . Total Hacks 170 | . 27 . 4 3 64 2 5 16 45 4 Successful 97 | . 11 . 4 1 38 1 . 9 29 4 Failed 72 | . 16 . . 2 25 1 5 7 16 . Catastrophic 15 | . 2 . . 1 2 . 2 3 5 . Database Lockouts 1 | . . . . . 1 . . . . . Manual 104 | . 23 . 1 3 29 . 2 14 32 . Terminals 116 | . 25 . . 3 41 . 5 16 26 . Fabricators . | . . . . . . . . . . . Repair Stations 5 | . 1 . . . 4 . . . . . Recycling Units 25 | . 1 . . . 5 . . . 19 . Scanalyzers 14 | . . . . . 14 . . . . . Garrison Access 2 | . . . . . . 2 . . . . Terminal Hacks 30 | . 2 . 4 1 9 . . 5 5 4 Record 8 | . . . 4 . . . . . . 4 Part Schematic 3 | . . . . . . . . 1 2 . Robot Schematic 1 | . . . . 1 . . . . . . Robot Analysis 5 | . 1 . . . 1 . . . 3 . Prototype ID Bank 5 | . 1 . . . 3 . . 1 . . Open Door 1 | . . . . . . . . 1 . . Alert Level 2 | . . . . . 2 . . . . . Unreport Threat 3 | . . . . . 1 . . 2 . . Locate Traps 1 | . . . . . 1 . . . . . Zone Layout 1 | . . . . . 1 . . . . . Fabricator Hacks . | . . . . . . . . . . . Repair Station Hacks 3 | . . . . . 3 . . . . . Scan Component 2 | . . . . . 2 . . . . . Repair 1 | . . . . . 1 . . . . . Recycling Unit Hacks 5 | . . . . . 1 . . . 4 . Retrieve Matter 1 | . . . . . 1 . . . . . Retrieve Components 4 | . . . . . . . . . 4 . Scanalyzer 13 | . . . . . 13 . . . . . Insert Component 5 | . . . . . 5 . . . . . Analyze 4 | . . . . . 4 . . . . . Retrieve Study 4 | . . . . . 4 . . . . . Garrison Access Hacks 1 | . . . . . . 1 . . . . Unlock Access 1 | . . . . . . 1 . . . . Unauthorized Hacks 44 | . 9 . . . 12 . . 4 19 . Terminals 28 | . 7 . . . 10 . . 4 7 . Track 2 | . . . . . 2 . . . . . Assimilate 1 | . . . . . 1 . . . . . Botnet 8 | . 2 . . . 2 . . 2 2 . Skim 17 | . 5 . . . 5 . . 2 5 . Fabricators . | . . . . . . . . . . . Repair Stations 1 | . 1 . . . . . . . . . Mechanics 1 | . 1 . . . . . . . . . Recycling Units 15 | . 1 . . . 2 . . . 12 . Reject 7 | . . . . . 1 . . . 6 . Recyclers 1 | . . . . . . . . . 1 . Tunnel 7 | . 1 . . . 1 . . . 5 . Scanalyzers . | . . . . . . . . . . . Garrison Access . | . . . . . . . . . . . Data Cores Recovered . | . . . . . . . . . . . Used . | . . . . . . . . . . . Hacking Detections 38 | . 7 . . 1 14 1 2 4 9 . Full Trace Events 9 | . . . . 1 1 . . . 7 . Feedback Events 2 | . . . . . . . . . 2 . Corruption 1 | . . . . . . . . . 1 . Hackware Fried 1 | . . . . . . . . . 1 . Feedback Blocked . | . . . . . . . . . . . Robot Schematics Acquired 1 | . . . . 1 . . . . . . Robots Built . | . . . . . . . . . . . Authchips . | . . . . . . . . . . . Time . | . . . . . . . . . . . Total Robot Build Rating . | . . . . . . . . . . . Part Schematics Acquired 8 | . . . . . 4 . . 1 2 1 Parts Built . | . . . . . . . . . . . Authchips . | . . . . . . . . . . . Time . | . . . . . . . . . . . Total Part Build Rating . | . . . . . . . . . . . Part Studies Acquired 3 | . . . . . 3 . . . . . Parts Repaired 1 | . . . . . 1 . . . . . Time 61 | . . . . . 61 . . . . . Parts Recycled . | . . . . . . . . . . . Recycled Matter . | . . . . . . . . . . . Retrieved Matter 193 | . . . . . 193 . . . . . Retrieved Components 8 | . . . . . . . . . 8 . Parts Scanalyzed 4 | . . . . . 4 . . . . . Part Schematics Acquired 4 | . . . . . 4 . . . . . Parts Damaged 1 | . . . . . 1 . . . . . Bothacking | -11 -10 -10 -10 -9 -8 -7 -7 -7 -7 -7 ------------ Run | Yrd Mat Min Exi Min Mat Fac Gar Sto Rec Scr Used RIF Installer 1 | . . . . . . . 1 . . . Robots Hacked 24 | . . . . . 2 . . 9 13 . Non-combat 19 | . . . . . 2 . . 6 11 . Combat 5 | . . . . . . . . 3 2 . Robot Hacks Applied 34 | . . . . . 2 . . 13 19 . parse_system 4 | . . . . . . . . 1 3 . no_distress 2 | . . . . . 1 . . 1 . . ignore_repairs 2 | . . . . . . . . 2 . . drop_inventory 3 | . . . . . . . . 3 . . find_recycling 2 | . . . . . 1 . . . 1 . ignore_parts 13 | . . . . . . . . . 13 . find_shortcuts 2 | . . . . . . . . 1 1 . overload_power 1 | . . . . . . . . 1 . . wipe_record 1 | . . . . . . . . 1 . . reboot_system 1 | . . . . . . . . 1 . . go_dormant 1 | . . . . . . . . . 1 . overwrite_iff 1 | . . . . . . . . 1 . . formatsys_low 1 | . . . . . . . . 1 . . Relay Couplers Released 14 | . . . . . . . 14 . . . Machine Destruction 14 | . . . . . . . 14 . . . Attached 2 | . . . . . . . . 2 . . Fabnet Peak Effective % . | . . . . . . . . . . . Robots Rewired 3 | . . . . . . . 3 . . . Allies Hacked . | . . . . . . . . . . . Hacks Repelled . | . . . . . . . . . . . Allies | -11 -10 -10 -10 -9 -8 -7 -7 -7 -7 -7 -------- Run | Yrd Mat Min Exi Min Mat Fac Gar Sto Rec Scr Total Allies 8 | . . . . . 1 . 5 2 . . Largest Group 5 | . . . . . 1 1 5 5 . . Highest-Rated Group 178 | . . . . . 10 10 178 176 . . Highest-Rated Ally 80 | . . . . . 10 10 80 80 . . Total Orders 22 | . . . . . 2 4 12 4 . . STAY 9 | . . . . . 1 2 6 . . . FOLLOW 9 | . . . . . 1 2 6 . . . EXPLORE 4 | . . . . . . . . 4 . . Ally Attacks 101 | . . . . . . . 14 87 . . Total Damage 3163 | . . . . . . . 259 2904 . . Kills 32 | . . . . . . . 4 28 . . Allies Corrupted . | . . . . . . . . . . . Allies Melted . | . . . . . . . . . . . Intel | -11 -10 -10 -10 -9 -8 -7 -7 -7 -7 -7 ------- Run | Yrd Mat Min Exi Min Mat Fac Gar Sto Rec Scr Active Infowar (turns) 18007 | 137 3159 1610 795 659 2836 406 1958 773 1487 4187 Optics 2754 | . . . . . 784 . 1950 20 . . Sensors 2471 | . . . . . 704 406 8 188 . 1165 Terrain 188 | 137 51 . . . . . . . . . Structural 7650 | . . . . . 953 406 . 617 1487 4187 Seismic 7296 | 8 3159 1610 795 659 1065 . . . . . ECM 4 | . . . . . . . . . 4 . Robot Analysis Total 5 | . 1 . . . 1 . . . 3 . Derelict Logs Recovered 2 | . . 1 . 1 . . . . . . Drone Launches 27 | . . . . . . . . 27 . . Drone Recoveries 12 | . . . . . . . . 12 . . Exploration | -11 -10 -10 -10 -9 -8 -7 -7 -7 -7 -7 ------------- Run | Yrd Mat Min Exi Min Mat Fac Gar Sto Rec Scr Turns Passed 20417 | 242 3159 1610 795 1676 4007 406 1958 877 1487 4200 Spaces Moved 11673 | 98 1317 654 332 1696 1770 194 877 346 945 3444 Core 99 | 93 4 . . 2 . . . . . . Treads 6398 | 5 984 654 332 103 1770 194 877 346 176 957 Legs 329 | . 329 . . . . . . . . . Wheels 769 | . . . . . . . . . 769 . Hover 2487 | . . . . . . . . . . 2487 Flight 1591 | . . . . 1591 . . . . . . Fastest Speed 32 | 50 120 240 240 32 160 200 200 200 120 77 Average Speed 148 | 95 196 240 240 43 195 200 200 201 148 112 Slowest Speed 240 | 160 240 240 240 240 240 200 200 240 240 200 Overloaded Moves . | . . . . . . . . . . . Propulsion Burnouts . | . . . . . . . . . . . Robots Hopped 18 | . . . . 18 . . . . . . Potential Cave-ins . | . . . . . . . . . . . Cave-ins Triggered 1 | . . . . . 1 . . . . . Exploration Rate (%) 67 | 4 100 99 53 97 87 7 83 58 97 59 Regions Visited 10 Branch Regions 6 Pre-discovered Areas 12 | . 3 . . 2 2 . . . 5 . Known Exits Taken 4 | . . . . 1 1 1 . 1 . . Unknown Exits Taken 5 | 1 1 1 1 . . . . . 1 . Scrap Searched 6 | . . 1 . 2 . . . . . 3 Spaces Dug 81 | . 30 . . . 39 2 9 1 . . Terrain Destroyed 167 | . 30 5 . . 88 2 35 7 . . Melee 48 | . . . . . 37 2 8 1 . . Projectile 48 | . 30 . . . 11 . 1 6 . . AOE 71 | . . 5 . . 40 . 26 . . . Terrain Rammed . | . . . . . . . . . . . Walls Destroyed . | . . . . . . . . . . . Machines Disabled . | . . . . . . . . . . . Actions | -11 -10 -10 -10 -9 -8 -7 -7 -7 -7 -7 --------- Run | Yrd Mat Min Exi Min Mat Fac Gar Sto Rec Scr Total 14099 | 204 1701 690 331 2579 2113 208 995 471 1019 3788 Wait 1395 | 73 236 10 . 790 46 1 1 7 3 228 Move 11627 | 97 1316 653 331 1660 1769 193 875 345 944 3444 Hop 17 | . . . . 17 . . . . . . Pick Up 181 | 7 23 7 . 37 36 4 11 11 9 36 Fast Attach 40 | 5 2 . . 5 8 . 1 4 8 7 Attach 34 | 2 . . . 5 8 3 5 3 3 5 Detach 14 | . 1 . . 1 1 . 1 1 3 6 Swap 162 | . 29 6 . 5 71 . 20 21 7 3 Drop 189 | . 13 9 . 22 44 2 7 18 16 58 Fire 315 | 20 81 5 . 28 85 3 37 31 25 . Melee 105 | . . . . 4 44 2 35 18 1 1 Ram . | . . . . . . . . . . . Kick . | . . . . . . . . . . . Crush 2 | . . . . . 1 . 1 . . . Escape Stasis . | . . . . . . . . . . . Rewire 2 | . . . . . . . 1 1 . . Trap 9 | . . . . 5 . . . 4 . . Miscellaneous 7 | . . . . . . . . 7 . . Route ------- -11/Scrapyard -10/Materials (discovered 6 exits: *Mat x3 / [*Min x2] / [*Sub]) -10/Mines (discovered 4 exits: *Mat x2 / *Exi / [*Sub]) -10/Exiles -9/Mines (discovered 2 exits: *Mat x2) -8/Materials (discovered 3 exits: *Fac x3) -7/Factory (discovered 4 exits: Fac / Sto / Low / Gar) -7/Garrison (discovered 4 exits: *Sto x4) -7/Storage (discovered 2 exits: Fac / *Rec) -7/Recycling (discovered 2 exits: [*Fac] / *Scr) -7/Scraptown (discovered 1 exit: [*Fac]) History --------- Turn | Location | Event 6 | -11/Scrapyard | Discovered new exit (range 16) 243 | -11/Scrapyard | Entered Materials 316 | -10/Materials | Build established: Mutant 582 | -10/Materials | Discovered new exit (range 12) 650 | -10/Materials | Discovered new exit (range 12) 743 | -10/Materials | Derelicts attacked the area 1238 | -10/Materials | Discovered new exit (range 3) 1350 | -10/Materials | Build established: Scavenger-Mutant 1358 | -10/Materials | Discovered new exit (range 14) 1651 | -10/Materials | Discovered new exit (range 5) 1959 | -10/Materials | Build established: Mutant 2409 | -10/Materials | Discovered new exit (range 9) 2880 | -10/Materials | Learned Storage trap positions 2918 | -10/Materials | Learned 2 Storage zone layouts 2967 | -10/Materials | Learned location of Mines (-10) 2975 | -10/Materials | Learned location of Subcaves (-10) 2976 | -10/Materials | Learned location of 2 exits from Subcaves 2977 | -10/Materials | Identified exit to Materials 2978 | -10/Materials | Loaded intel: 2 recycling unit locations 2985 | -10/Materials | Learned location of 1 exit from Storage 3004 | -10/Materials | Learned location of 2 exits from Materials 3402 | -10/Materials | Entered Mines 3744 | -10/Mines | Received a Rocket Launcher from a helpful Derelict 4065 | -10/Mines | A weapon hastily lodged in a ceiling crevice suddenly fell to the ground 4314 | -10/Mines | Joined a pair of Derelicts in attacking an 0b10 outpost 4375 | -10/Mines | Found DCF Scrap (11 items) 4617 | -10/Mines | Deemed a non-threat by the Exiles lab entrance 4619 | -10/Mines | Discovered new exit (range 5) 4897 | -10/Mines | Discovered new exit (range 6) 5012 | -10/Mines | Entered Exiles 5012 | -10/Exiles | Found Exiles lab abandoned 5044 | -10/Exiles | Discovered new exit (range 15) 5807 | -10/Exiles | Entered Mines 5808 | -9/Mines | Assembled infested the area 5808 | -9/Mines | Identified exit to Materials 5810 | -9/Mines | Released all parts (7) 5813 | -9/Mines | Assisted by a Guerilla fighting off Assembled 5845 | -9/Mines | Learned location of Storage (-7) 5858 | -9/Mines | Found a hidden stash of uninstalled traps 6101 | -9/Mines | Build established: Sprinter 6990 | -9/Mines | Discovered exit to Materials (range 9) 7483 | -9/Mines | Entered Materials 7483 | -8/Materials | Evolved 4 slots: Propulsion x1, Utility x2, Weapon x1 7484 | -8/Materials | Identified exit to Factory 8409 | -8/Materials | Build established: Scavenger-Mutant 8716 | -8/Materials | Crushed by falling debris 9013 | -8/Materials | Learned location of Zion (-6) 9057 | -8/Materials | Learned Storage trap positions 9091 | -8/Materials | Learned 2 Storage zone layouts 9117 | -8/Materials | Learned location of 2 exits from Factory 9161 | -8/Materials | Learned 4 Factory zone layouts 9198 | -8/Materials | Learned 4 Factory zone layouts 9230 | -8/Materials | Build established: Tank 9442 | -8/Materials | Central database locked down 9579 | -8/Materials | Repaired Broken Gauss Rifle 9948 | -8/Materials | Build established: Scavenger-Mutant 11490 | -8/Materials | Entered Factory 11490 | -7/Factory | Accompanied by 1 ally 11490 | -7/Factory | Evolved 2 slots: Utility x2 11491 | -7/Factory | Identified exit to Storage 11492 | -7/Factory | Identified exit to Factory 11492 | -7/Factory | Identified exit to Lower Caves 11797 | -7/Factory | Build established: Scavenger-Assassin 11883 | -7/Factory | Identified exit to Garrison 11896 | -7/Factory | Entered Garrison 11896 | -7/Garrison | Accompanied by 1 ally 12129 | -7/Garrison | Triggered checkpoint 12172 | -7/Garrison | Triggered checkpoint 12186 | -7/Garrison | Triggered checkpoint 12192 | -7/Garrison | Build established: Scavenger-Mutant 12219 | -7/Garrison | Destroyed 20 combat bots 12440 | -7/Garrison | Installed Relay Interface Framework 12490 | -7/Garrison | Discovered exit to Storage (range 10) 12570 | -7/Garrison | Triggered checkpoint 12598 | -7/Garrison | Triggered checkpoint 12601 | -7/Garrison | Garrison Relay disabled 12912 | -7/Garrison | Build established: Scavenger-Tank 12941 | -7/Garrison | Discovered exit to Storage (range 14) 13118 | -7/Garrison | Found embedded Infiltrators 13148 | -7/Garrison | Triggered checkpoint 13180 | -7/Garrison | Garrison Relay disabled 13352 | -7/Garrison | Triggered checkpoint 13401 | -7/Garrison | Garrison Relay disabled 13481 | -7/Garrison | Discovered exit to Storage (range 10) 13518 | -7/Garrison | Triggered checkpoint 13531 | -7/Garrison | Discovered exit to Storage (range 6) 13605 | -7/Garrison | Build established: Mutant 13702 | -7/Garrison | Triggered checkpoint 13740 | -7/Garrison | Garrison Relay disabled 13854 | -7/Garrison | Entered Storage 13854 | -7/Storage | Accompanied by 5 allies 13855 | -7/Storage | Identified exit to Recycling 13858 | -7/Storage | Loaded intel: 14 trap records 14204 | -7/Storage | Lost 5 allies 14254 | -7/Storage | First assault squad dispatched 14265 | -7/Storage | Build established: Scavenger-Mutant 14282 | -7/Storage | Lost 5 allies 14311 | -7/Storage | Found Rocket Array 14315 | -7/Storage | Found Faulty Rocket Array 14331 | -7/Storage | Lost 3 allies 14515 | -7/Storage | Core integrity fell below 50% 14721 | -7/Storage | Build established: Scavenger-Tank 14723 | -7/Storage | Used back door to open Recycling access 14731 | -7/Storage | Entered Recycling 15364 | -7/Recycling | Discovered new exit (range 6) 15464 | -7/Recycling | Scanned before Scraplab entrance 15689 | -7/Recycling | Discovered new exit (range 11) 15692 | -7/Recycling | Entered Scraplab 15913 | -7/Recycling | Hacking Suite fried by hacking feedback 16218 | -7/Recycling | Entered Scraptown 16223 | -7/Scraptown | System corruption cleaned by C-Scrubber 16450 | -7/Scraptown | Build established: Scavenger-Mutant 16455 | -7/Scraptown | Visited IN-MT5's Study 16513 | -7/Scraptown | Visited Symbiants 17029 | -7/Scraptown | Visited Science Testing Area 17127 | -7/Scraptown | Discovered new exit (range 11) 17561 | -7/Scraptown | Visited Red Mages 17641 | -7/Scraptown | Visited Comm Corps 17771 | -7/Scraptown | Turned away by UFD registrar 17795 | -7/Scraptown | Visited Cave Peace 18482 | -7/Scraptown | Found Relay Coupler [Proto] 18490 | -7/Scraptown | Found Relay Coupler [Proto] 18747 | -7/Scraptown | System corruption cleaned by C-Scrubber 20383 | -7/Scraptown | Attacked by Scraptown defenders 20408 | -7/Scraptown | Core integrity fell below 20% 20418 | -7/Scraptown | Destroyed by NC-VEQ(j) with Overtuned Pulse Rifle Last Messages --------------- 20405_ Y8-873(p) suffers critical hit (Destroy). 20405_ Structural Scanner destroyed. 20405_ Acquired Hrd. Heavy Armor Plating. 20407_ QW-UMG(j): "It's scrappin' time!" 20407_ Dropped Sml. Storage Unit. 20408_ Dropped Adv. ECM Suite. 20408_ Acquired Authchip [Propulsion]. 20409_ Critical hit (Destroy). 20410_ NC-VEQ(j) heat short circuits Lgt. Deuterium Engine. 20411_ Critical hit (Burn: +50). 20411_ Penetrated by Slug. 20412_ Remote Datajack destroyed. 20414_ T0-NE2 suffers critical hit (Burn). 20415_ QW-UMG(j) destroyed. 20416_ T0-NE2 destroyed. 20416_ Penetrated by Slug. 20416_ Acquired Nuclear Pulse Thruster. 20417_ Hrd. Heavy Armor Plating destroyed. 20417_ Critical hit (Burn: +50). Map ----- +----------------------------------------------------+ | #""""" """""####### ###########" =""##??? | | #" " " ### """"""""###" """##??? | | "" ""#" " " "### ### " ""###" """##??? | | "" "#" " " "#"" """ = "###"""""""##??? | | "" "#""""" """""#" """ " ""############??? | | " "###### ######" " """"""""############??? | | "#""""" """""#" = ##"""#####????????????? | | "" ""#" " " "#" "" " ############???######## | | ## ###" " " "#" " ############???######## | | ## " " "#"""""" # ##???## | | ######""""" """""####### = # ##???## "" "" | | ########### ############ E# ##???## ""X"" | | ########### ############ # ##???## """"" | | # ##???## """ | | # ##???## " | | ######################## # ##???## | | ####################### # ####### | | #######?????????????#### ### ################## | | """""##?????????????"# jx | | "##???????? #"??"# p | | []! "##???????? #"??"# | | !]] "##???????? #" ?"# x | | [ [ "##???????? #" ?"# | | ![! "##????? ? # "# j j################# | | ]! "##?????"" ## "# ################# | | "##?????"" "# @ ############???## | | "##???? "" "# E*%############???## | | "" ""##?????""" " !%! # """"""""##???## | | ## ####?????"""" "# !=[ # "##???## | | ## ####?????########## # "" "##???## | | "" ""################# # ##### "##???## | | "################# # #" # "##???## | | "" "####""""""""""""# ; #" + "##???## | | "" "####"""" """"" ; # #" "# "##???## | | "####""" " # ! !!; # "# "##???## | | ""#######" # ] ##### "##???## | | """""####!!#" """ # j # " """ "##???## | | """""#### #" "" # j # "##???## | | """""#### !#" """ # jppj# """"""""####### | | ######### #" # j "################ | | #########!!#"" " " # = | | ""X""####!!+ """ | | "#######""" """ # | | "####""""""""" # | | "##?############## | | "##?######## | | "########## | | " """########### | | ###### #################### ### | | ### ###### # | +----------------------------------------------------+ Best States ------------- Heat Dissipation 48 Energy Generation 16 Energy Capacity 290 Matter Stores 300 Matter Capacity 300 Sight Range 20 Robot Scan Range 15 Terrain Scan Range 16 Terrain Scan Density 10 Armor Coverage 600 Propulsion Shielding 66 Evasion (%) 63 Launcher Accuracy 20 Recoil Reduction 3 Offensive Hacking 20 Defensive Hacking 10 Relay Coupler Types 2 Relay Coupler Value 35 Authchip Count 2 Item Schematics ----------------- Cmb. Airjet | -8/Materials | Scanalyzed Lgt. Armor Plating | -8/Materials | Scanalyzed Enh. Autogun | -8/Materials | Scanalyzed Gauss Rifle | -8/Materials | Scanalyzed Weapon Cycler | -7/Storage | Hacked Remote Datajack | -7/Recycling | Hacked Linear Gravjet | -7/Recycling | Hacked IN-MT5's Pitchfork "Insurrection" | -7/Scraptown | Archive Robot Schematics ------------------ M-13 Machinist | -9/Mines | Hacked Fabricated ------------ Nothing Repaired ---------- Gauss Rifle | 53% | -8/Materials | Broken Studied --------- Imp. Treads | -8/Materials | Hacked Lgt. Treads | -8/Materials | Hacked Lgt. Nuclear Core | -8/Materials | Hacked Alien Tech Used ----------------- None Achievements -------------- A Problem For Future Me Factory Defaults Killing Spree Live, Flee, And Rebuild Mindtrick Oppo Buddy Versatile Challenges ------------ None Game ------ Seed AntigravRecyclingNetwork Manual? 0 Play Time 04:47:11 Cumulative 77.6 hours Start 2025.11.14 @ 20:42:05 End 2025.11.15 @ 23:30:55 Sessions 3 Manual Loads 0 Difficulty Rogue Special Mode None Game No. 31 Rogue 30 Adventurer 1 Explorer 0 Win Type - Total 2 Types 1/0/1/0/0/0/0/0/0/0 Lore% 37 Gallery% 37 Achievement% 33 Wizard Run 0 Options --------- Layout 2 ASCII 0 Keyboard 1 Movement Vi Keybinds 1 Fullscreen 2 Font 32/Terminus Map View 50x44 Zoom Use 0% Tactical HUD 1 Map Filters NONE Filters NONE Steam 1 RUN: 02a76a30-7e4d-426b-a12f-6cd31ad259b9